Cogmind - Beta 10.2 @@@ ROGUE MODE // 2020.11.29 @ 17:31:12 Player: kerapace Result: Destroyed by P-80 Master with Gamma Rifle Performance ------------- Evolutions (9) 4500 Regions Visited (31) 6200 Robots Destroyed (372) 1860 Value Destroyed (16944) 16944 Prototype IDs (41) 820 Alien Tech Used (1) 200 Bonus (6462) 6462 TOTAL SCORE: 36986 Bonus ------- High Alert Combat Kills 2346 Follower Combat Kills 2127 Network Hubs Disabled 200 Met Data Miner 300 Met Zhirov 300 Met Warlord at Base 500 MAIN.C Attacked Warlord 500 Built Enhanced Grunts 300 A7 Reached Mainframe 300 Met R17 at Cetus 500 Read Decrypted Archives 300 Met Warlord at Research 2000 Friendly Fire -3211 Cogmind --------- Core Integrity 0/1600 Matter 247/300 Energy 81/100 System Corruption 11% Temperature Cool (0) Movement Core (250) Ox4 Location -1/Access Parts ------- > --- POWER (2) -------- (None) > --- PROPULSION (5) --- (None) > --- UTILITY (14) ----- Advanced Signal Interpreter Advanced Targeting Computer Experimental Core Analyzer Precision Energy Filter Precision Energy Filter > --- WEAPON (4) ------- KE Penetrator > --- INVENTORY (4) ---- Experimental Energy Well (1000) Power Sword Peak State ------------ > --- POWER ------------ Vortex Chain Reactor > --- PROPULSION ------- Myomer Leg Myomer Leg Myomer Leg Myomer Leg Myomer Leg > --- UTILITY ---------- Advanced Heat Sink Advanced Heat Sink Advanced Signal Interpreter Advanced Terrain Scan Processor Improved Targeting Computer Advanced Targeting Computer Experimental Core Analyzer Advanced Transmission Jammer Advanced Phase Shifter Layered Heavy Armor Plating Centrium Light Armor Plating Centrium Light Armor Plating Improved Powered Armor > --- WEAPON ----------- Phase Gun Heavy Proton Cannon Cooled Nova Cannon Helical Railgun > --- INVENTORY -------- Improved Energy Well Experimental Energy Well Power Sword [Rating: 177] Favorites ----------- Power F-cell Engine Engine F-cell Engine Power Core Micro Fission Core Reactor Quantum Reactor Propulsion Combat Gravmag System Treads Armored Treads Leg Myomer Leg Wheel Armored Huge Wheel Hover Unit Combat Gravmag System Utility Large Storage Unit Device Advanced Heat Sink Storage Large Storage Unit Processor Advanced Signal Interpreter Hackware Advanced System Shield Protection Centrium Medium Armor Plating Weapon Enhanced Autogun Energy Gun Phase Gun Energy Cannon Proton Cannon Ballistic Gun Enhanced Autogun Ballistic Cannon Heavy Gauss Cannon Launcher Advanced EMP Blaster Special Weapon Improved Remote Datajack Slashing Weapon Phasing Sabre Build | -11 -10 -10 -10 -9 -8 -8 -7 -7 -7 -7 -6 -6 -6 -6 -6 -6 -5 -5 -5 -5 -4 -4 -4 -4 -4 -3 -3 -3 -2 -2 -1 ------- Run | Scr Mat Min Exi Min Mat Sto Fac Low Low Dat Pro Fac Ext Cet Arc Hub Fac Upp Upp War Pro Fac Upp Upp Zhi Pro Res Arm Res Tes Acc Slots Evolved 18 | . . . . . 4 . 2 . . . . 2 . . . . 2 . . . . 2 . . . . 2 . 2 . 2 Power 1 | . . . . . . . . . . . . . . . . . . . . . . 1 . . . . . . . . . Propulsion 3 | . . . . . 1 . . . . . . 1 . . . . . . . . . 1 . . . . . . . . . Utility 12 | . . . . . 3 . 2 . . . . . . . . . 2 . . . . . . . . . 2 . 2 . 1 Weapon 2 | . . . . . . . . . . . . 1 . . . . . . . . . . . . . . . . . . 1 Parts Attached 502 | 8 7 6 . . 38 34 41 14 3 . 18 16 23 8 4 3 39 10 4 15 6 36 13 13 7 4 37 30 25 13 27 Power 32 | 2 1 1 . . 3 2 1 . . . . . 3 . 1 . 4 . . . 2 3 . . 1 . . 1 3 1 3 Engine 13 | 2 1 1 . . 3 2 1 . . . . . 3 . . . . . . . . . . . . . . . . . . Core 4 | . . . . . . . . . . . . . . . . . 2 . . . . 2 . . . . . . . . . Reactor 15 | . . . . . . . . . . . . . . . 1 . 2 . . . 2 1 . . 1 . . 1 3 1 3 Propulsion 61 | 3 1 . . . 7 4 3 1 . . . 2 7 1 1 2 4 . . 2 . 2 1 . . . . 5 5 5 5 Treads 30 | 1 1 . . . 7 4 2 1 . . . . 7 1 1 . . . . . . . . . . . . 2 3 . . Leg 12 | 1 . . . . . . . . . . . . . . . . . . . . . . . . . . . . 2 4 5 Wheel 7 | 1 . . . . . . 1 . . . . 2 . . . 2 . . . . . . . . . . . . . 1 . Hover 12 | . . . . . . . . . . . . . . . . . 4 . . 2 . 2 1 . . . . 3 . . . Flight . | . . . . . . . . . . . . . . . . . . . . . . . . . . . . . . . . Utility 161 | 1 2 . . . 7 8 13 7 2 . 7 5 5 4 . . 19 3 3 7 3 10 5 2 3 1 14 9 12 2 7 Device 86 | . . . . . 3 3 4 3 1 . 4 3 3 1 . . 9 1 3 6 1 6 5 2 . 1 9 7 4 2 5 Storage 13 | 1 2 . . . . . 1 . 1 . . . . 1 . . 3 . . . 1 . . . . . 1 1 . . 1 Processor 9 | . . . . . . 1 1 1 . . . 1 . . . . . . . . . . . . . . 1 . 3 . 1 Hackware 5 | . . . . . . . 2 . . . . . . . . . 2 . . . . 1 . . . . . . . . . Protection 48 | . . . . . 4 4 5 3 . . 3 1 2 2 . . 5 2 . 1 1 3 . . 3 . 3 1 5 . . Artifact . | . . . . . . . . . . . . . . . . . . . . . . . . . . . . . . . . Weapon 248 | 2 3 5 . . 21 20 24 6 1 . 11 9 8 3 2 1 12 7 1 6 1 21 7 11 3 3 23 15 5 5 12 Energy Gun 25 | . 3 1 . . 2 . 2 2 . . 1 1 2 . . . . 1 . . . . . 1 . . 1 1 3 . 4 Energy Cannon 80 | . . 2 . . 11 6 9 1 . . 2 2 2 . . . 6 1 . 2 . 10 3 2 . . 9 7 1 3 1 Ballistic Gun 85 | 2 . . . . 4 7 9 2 . . 4 5 3 3 2 . 5 3 . 1 . 7 4 5 3 1 6 2 1 1 5 Ballistic Cannon 7 | . . . . . . . . . . . . . . . . . . . . . . . . . . . 3 2 . . 2 Launcher 35 | . . 2 . . 4 3 4 1 1 . 3 1 1 . . 1 1 2 1 . 1 1 . 3 . 1 2 2 . . . Special Weapon 2 | . . . . . . . . . . . . . . . . . . . . 2 . . . . . . . . . . . Impact Weapon . | . . . . . . . . . . . . . . . . . . . . . . . . . . . . . . . . Slashing Weapon 14 | . . . . . . 4 . . . . 1 . . . . . . . . 1 . 3 . . . 1 2 1 . 1 . Piercing Weapon . | . . . . . . . . . . . . . . . . . . . . . . . . . . . . . . . . Special Melee Weapon . | . . . . . . . . . . . . . . . . . . . . . . . . . . . . . . . . Unidentified Prototypes 34 | . . . . . 3 4 1 . . . . . . 3 . . 1 . . 3 . 1 . . 3 . 2 2 3 4 4 Parts Lost 112 | . 4 . . 1 2 5 4 4 . . 3 1 10 1 4 . 3 3 . . 1 5 . 1 . . 6 18 3 1 32 Power 8 | . . . . . 1 . . . . . . . 1 . 1 . . . . . . . . . . . . 2 . . 3 Propulsion 29 | . 1 . . 1 1 1 1 1 . . . . 3 . 1 . 1 . . . . . . . . . . 7 . 1 10 Utility 44 | . . . . . . 3 1 3 . . 2 1 3 1 . . 2 . . . . 3 . 1 . . 5 5 2 . 12 Weapon 31 | . 3 . . . . 1 2 . . . 1 . 3 . 2 . . 3 . . 1 2 . . . . 1 4 1 . 7 Highest Loss Streak 15 | . 2 . . 1 1 2 2 4 . . 2 1 8 1 4 . 1 2 . . 1 2 . 1 . . 4 15 2 1 10 Average Slot Usage (%) 91 | . 89 100 100 97 92 99 93 91 92 92 92 86 90 86 84 86 94 99 100 99 100 94 100 98 84 100 98 91 55 87 64 Engine 4 | . 14 14 14 14 8 9 7 7 7 7 7 6 6 6 4 . . . . . . . . . . . . . . . . Reactor 2 | . . . . . . . . . . . . . . . 1 6 4 5 5 5 5 4 5 5 5 5 4 3 5 4 2 Treads 8 | . 14 14 14 14 24 26 13 7 7 7 7 6 9 7 7 12 2 . . . . . . . . . . . 7 8 . Wheel 3 | . 14 14 14 11 . . 3 7 7 7 7 7 8 6 4 1 5 . . . . . . . . . . . . 1 . Hover 7 | . . . . . . . . . . . . . . . . . 11 23 23 22 23 24 26 26 26 26 23 19 . . . Device 10 | . . . . . 8 9 10 13 14 15 8 11 12 6 6 6 9 16 11 13 17 10 15 14 15 15 16 16 4 12 8 Storage 16 | . 18 28 28 28 18 18 21 23 23 23 23 14 13 19 20 20 17 17 17 17 17 15 15 15 15 15 14 14 . . . Processor 8 | . . . . . . 4 6 7 7 7 7 12 13 13 13 13 11 11 11 11 11 10 10 10 10 10 11 14 19 21 19 Protection 7 | . . . . . 15 12 11 7 7 7 13 6 5 5 6 6 5 5 11 8 5 5 5 5 4 5 8 3 6 17 8 Energy Gun 1 | . 10 15 . . . . . 3 3 . . . . . . . . 1 5 2 . . . . . . . . 4 4 3 Energy Cannon 6 | . . 11 28 28 11 5 7 3 7 7 5 1 . 8 . . 3 4 5 7 11 8 . 3 . . 6 6 2 3 3 Ballistic Gun 7 | . 17 . . . 4 10 4 8 . . 5 16 19 7 18 18 12 6 . . 1 3 8 7 1 12 2 1 . 3 3 Launcher 1 | . . . . . . . 1 . 3 7 2 . . 3 . . . 3 4 3 3 1 . 1 . . . . . . . Naked Turns . | . . . . . . . . . . . . . . . . . . . . . . . . . . . . . . . . Heaviest Build 113 | 13 37 45 45 45 63 69 78 76 75 74 77 74 75 83 86 86 97 100 100 104 96 107 102 104 90 91 108 106 103 103 113 Greatest Support 160 | 20 20 16 16 20 62 62 68 28 28 28 28 38 60 80 80 160 100 100 100 100 100 125 125 125 125 125 125 150 136 136 128 Greatest Overweight (x) 8 | . 2 2 2 2 2 1 2 2 2 2 2 2 3 2 2 8 8 . . 1 . . . . . . . 1 4 2 3 Average Overweight (x) . | . . 2 2 2 . . 1 2 2 2 2 1 1 1 1 . 1 . . . . . . . . . . . . . . Largest Inventory Capacity 20 | 6 16 16 16 16 16 16 20 20 20 20 20 20 16 20 20 20 20 20 20 20 20 20 20 20 20 20 20 20 4 4 4 Average Capacity 16 | 5 8 16 16 16 16 16 19 20 20 20 20 16 16 19 20 20 20 20 20 20 20 20 20 20 20 20 20 19 4 4 4 Most Carried 20 | 3 16 16 16 16 16 16 20 20 18 18 19 19 16 20 20 18 20 20 20 20 20 20 18 20 20 20 20 20 4 4 4 Average Carried 15 | 1 6 15 16 15 15 15 18 16 16 18 17 16 15 19 19 15 19 19 19 19 19 19 17 19 19 20 19 19 4 3 3 Final Capacity 20 | 6 16 16 16 16 16 16 20 20 20 20 20 16 16 20 20 20 20 20 20 20 20 20 20 20 20 20 20 4 4 4 4 Final Carried 20 | 3 16 16 16 15 16 16 20 16 18 18 19 16 16 20 15 18 20 19 20 20 20 17 18 20 20 20 19 4 4 4 2 Class Distribution -------------------- 25% | Hauler-Mutant 25% | Mutant 15% | Scavenger-Mutant 11% | Scavenger-Tank 6% | Scavenger-Skirmisher Dominant Class ---------------- Mutant | -10/Materials Scavenger-Mutant | -10/Mines Mutant | -10/Exiles Mutant | -9/Mines Mutant | -8/Materials Mutant | -8/Storage Hauler-Mutant | -7/Factory Hauler-Mutant | -7/Lower Caves Hauler-Mutant | -7/Lower Caves Hauler-Mutant | -7/Data Miner Hauler-Mutant | -6/Proximity Caves Skirmisher | -6/Factory Scavenger-Tank | -6/Extension Hauler-Tank | -6/Cetus Scavenger-Tank | -6/Archives Scavenger-Tank | -6/Hub_04(d) Scavenger-Tank | -5/Factory Scavenger-Skirmisher | -5/Upper Caves Hauler-Mutant | -5/Upper Caves Hauler-Mutant | -5/Warlord Hauler-Mutant | -4/Proximity Caves Machinist-Mutant | -4/Factory Scavenger-Mutant | -4/Upper Caves Scavenger-Skirmisher | -4/Upper Caves Machinist-Mutant | -4/Zhirov Scavenger-Mutant | -3/Proximity Caves Scavenger-Mutant | -3/Research Hauler-Scout | -3/Armory Mutant | -2/Research Scavenger-Tank | -2/Testing Scavenger-Gunner | -1/Access Resources | -11 -10 -10 -10 -9 -8 -8 -7 -7 -7 -7 -6 -6 -6 -6 -6 -6 -5 -5 -5 -5 -4 -4 -4 -4 -4 -3 -3 -3 -2 -2 -1 ----------- Run | Scr Mat Min Exi Min Mat Sto Fac Low Low Dat Pro Fac Ext Cet Arc Hub Fac Upp Upp War Pro Fac Upp Upp Zhi Pro Res Arm Res Tes Acc Matter Collected 10022 | 250 409 82 . . 755 654 698 283 88 . 249 299 629 242 . 89 833 215 68 172 70 532 592 153 . 69 907 321 438 270 655 Remotely . | . . . . . . . . . . . . . . . . . . . . . . . . . . . . . . . . Salvage Created 20875 | . 642 89 . 185 1775 1842 1250 360 239 . 413 1030 1373 393 . 298 1448 343 70 . 145 1464 620 555 . 92 1784 770 277 1215 2203 Parts 839 | . 38 7 . 10 93 91 57 23 5 . 24 28 59 21 . 8 54 10 2 . 7 55 4 19 . 10 56 32 11 41 74 Haulers Intercepted 20 | . 1 . . . 3 6 1 . . . . . . . . . 5 . . . . 1 . . . . 2 . . . 1 Recyclers Shooed 13 | . 2 . . . 2 1 . . . . . 2 1 . . . . . . . . 1 . . . . 3 . . . 1 Parts Field Recycled . | . . . . . . . . . . . . . . . . . . . . . . . . . . . . . . . . Retrieved Matter . | . . . . . . . . . . . . . . . . . . . . . . . . . . . . . . . . Parts Self-Destructed 86 | . . . . . . . . 17 3 . 18 . . . . . . 5 . 32 . . 2 2 . 7 . . . . . Prevented 55 | . . . . . . . . 5 2 . 9 . . . . . . 4 2 4 7 . 8 14 . . . . . . . Kills | -11 -10 -10 -10 -9 -8 -8 -7 -7 -7 -7 -6 -6 -6 -6 -6 -6 -5 -5 -5 -5 -4 -4 -4 -4 -4 -3 -3 -3 -2 -2 -1 ------- Run | Scr Mat Min Exi Min Mat Sto Fac Low Low Dat Pro Fac Ext Cet Arc Hub Fac Upp Upp War Pro Fac Upp Upp Zhi Pro Res Arm Res Tes Acc Combat Hostiles Destroyed 293 | . 15 3 . 4 35 30 22 6 4 . 10 7 19 4 . 4 12 8 1 . 2 14 2 9 . 5 20 13 5 15 24 Melee 3 | . . . . . . 3 . . . . . . . . . . . . . . . . . . . . . . . . . Guns 108 | . 15 1 . . 9 12 8 2 . . 2 3 11 . . 2 9 . . . . 6 1 . . 1 2 1 2 13 8 Cannons 71 | . . . . 2 16 3 1 2 . . 1 2 . . . . 1 3 . . . 2 . 2 . . 10 7 2 2 15 AOE 62 | . . 2 . 1 9 10 7 1 1 . 5 2 5 1 . 2 . 3 . . . . 1 5 . 4 . 2 . . 1 Classes Destroyed 23 | . 5 . . . 5 3 4 1 . . . . . . . . . . . . . . . . . . . 1 2 2 . Worker 12 | . 1 . . . . 1 . . . . . 2 . . . 2 2 . . . . . . . . . 1 . . 1 2 Builder 14 | . . . . . 2 3 1 . . . . 2 2 . . . 1 . . . . 2 . . . . . . . . 1 Tunneler 2 | . . . . . . . 1 . . . . 1 . . . . . . . . . . . . . . . . . . . Hauler 20 | . 1 . . . 3 6 1 . . . . . . . . . 5 . . . . 1 . . . . 2 . . . 1 Recycler 14 | . 1 1 . . 2 1 2 . . . . 3 . . . . . . . . . 1 . . . . 1 . . 1 1 Carrier 1 | . . . . . . . . . . . . . . . . . . . . . . . . . . . . . . 1 . Operator 1 | . . . . . . 1 . . . . . . . . . . . . . . . . . . . . . . . . . Watcher 14 | . . . . . 2 . 1 . . . . . 1 2 . . 3 . . . . 2 . . . . 2 . . . 1 Swarmer 56 | . 3 3 . . 12 4 3 . . . 6 2 . . . . . 4 . . . . . 3 . 5 7 2 . . 2 Saboteur 2 | . . . . . . . . . . . . . . . . . . . . . . . . . . . . 1 . 1 . Grunt 125 | . 12 . . 4 13 16 9 3 4 . 2 3 12 . . 3 5 1 . . . 3 1 3 . . 7 2 . 9 13 Brawler 4 | . . . . . 1 2 . . . . . . . . . . . . . . . 1 . . . . . . . . . Duelist 10 | . . . . . . 1 . 1 . . 1 . 2 . . . . . . . . . . 2 . . . 2 . . 1 Protector 2 | . . . . . . 1 . . . . . . . . . . . . . . . . . . . . . 1 . . . Sentry 37 | . . . . . 8 6 2 . . . . 1 3 . . 1 2 1 . . . 4 . 1 . . 3 2 1 . 2 Demolisher 1 | . . . . . . . 1 . . . . . . . . . . . . . . . . . . . . . . . . Specialist 3 | . . . . . . . . . . . . . . . . . . . . . . . . . . . . . . 3 . Hunter 20 | . . . . . 1 . 4 . . . 1 1 . . . . 3 1 1 . 2 2 . . . . . . . . 4 Programmer 20 | . . . . . . . 1 1 . . . . . . . . 2 . . . . 4 1 . . . 3 3 1 2 2 Behemoth 3 | . . . . . . . . 1 . . . . 2 . . . . . . . . . . . . . . . . . . Cetus Guard 4 | . . . . . . . . . . . . . . 4 . . . . . . . . . . . . . . . . . Striker 1 | . . . . . . . . . . . . . . . . . . . . . . . . . . . . . 1 . . Executioner 2 | . . . . . . . . . . . . . . . . . . . . . . . . . . . . . 2 . . Packrat 5 | . . . . . . . . . . . . . . . . . . . . . . . 5 . . . . . . . . Assembled 2 | . . . . . . . 2 . . . . . . . . . . . . . . . . . . . . . . . . Thug 2 | . . . . . . . . . . . . . . . . . . 1 . . . . . . . . 1 . . . . Butcher 1 | . . . . . . . . . . . . . 1 . . . . . . . . . . . . . . . . . . Best Kill Streak 14 | . 5 3 . 2 7 14 4 4 4 . 4 7 8 3 . 3 3 3 1 . 2 4 1 4 . 5 8 4 3 7 10 Combat Bots Only 9 | . 3 3 . 2 4 9 3 4 4 . 4 3 8 2 . 3 3 4 1 . 2 3 1 4 . 5 8 4 3 6 8 Max Kills in Single Turn 5 | . 2 3 . 1 3 5 2 1 1 . 3 3 3 2 . 2 2 2 1 . 1 2 1 2 . 2 2 2 1 2 2 Gunslinging 1 | . 1 . . . . . . . . . . . . . . . . . . . . . . . . . . . . 1 . Exploded 3 | . . 2 . 1 2 3 2 1 1 . 3 1 3 1 . 2 . 2 . . . . 1 2 . 2 . 1 . . 1 Melee 1 | . . . . . . 1 . . . . . . . . . . . . . . . . . . . . . . . . . Uniques/NPCs Destroyed 1 | . . . . . . . . . . . . . . 1 . . . . . . . . . . . . . . . . . A7 (-6/Cetus) Combat | -11 -10 -10 -10 -9 -8 -8 -7 -7 -7 -7 -6 -6 -6 -6 -6 -6 -5 -5 -5 -5 -4 -4 -4 -4 -4 -3 -3 -3 -2 -2 -1 -------- Run | Scr Mat Min Exi Min Mat Sto Fac Low Low Dat Pro Fac Ext Cet Arc Hub Fac Upp Upp War Pro Fac Upp Upp Zhi Pro Res Arm Res Tes Acc Damage Taken 29280 | . 702 81 . 92 1146 1830 1821 842 108 . 488 434 1667 191 1297 561 1305 487 140 . 126 1805 208 277 . 87 2016 3586 640 1338 6005 Core 4086 | . 174 15 . 34 39 202 128 73 . . 34 20 117 31 226 32 75 133 21 . . 156 . 19 . . 320 590 . 39 1608 Absorbed by Shields 328 | . . . . . . . . . . . . . 88 105 . . . . . . . . 69 . . . . . . . 66 Reduced by Siege Mode 21 | . . . . . . . . . . . . . . . . 21 . . . . . . . . . . . . . . . Core Remaining (%) 63 | 100 . . . 10 . 56 . . . . 66 . . . . 49 . . . . 77 . . . . 84 . 30 . 97 . Volleys Fired 856 | . 76 3 . 6 73 87 69 31 5 . 17 24 52 15 . 12 43 19 3 5 6 58 16 17 . 5 55 36 16 42 65 Largest 4 | . 2 2 . 2 2 2 2 2 2 . 2 3 3 3 . 3 3 3 3 3 3 3 2 3 . 2 3 2 3 3 4 Hottest 302 | . 80 112 . 112 133 119 126 113 99 . 113 190 122 186 . 101 150 160 161 185 186 251 163 199 . 63 275 162 302 220 257 Shots Fired 1925 | . 148 6 . 12 130 154 132 60 9 . 29 69 140 42 . 33 116 37 8 7 13 147 32 34 . 8 134 69 40 111 205 Gun 1194 | . 148 2 . . 40 101 81 52 . . 14 46 133 30 . 31 98 13 3 1 . 85 26 1 . 6 24 14 28 82 135 Cannon 643 | . . 2 . 12 81 43 43 6 4 . 9 18 . 10 . . 18 21 3 2 12 59 6 25 . . 105 53 12 29 70 Launcher 84 | . . 2 . . 9 10 8 2 5 . 6 5 7 2 . 2 . 3 2 . 1 3 . 8 . 2 5 2 . . . Special 4 | . . . . . . . . . . . . . . . . . . . . 4 . . . . . . . . . . . Kinetic 1048 | . 108 . . . 32 101 74 50 . . 13 37 127 30 . 31 98 11 . 1 . 85 26 1 . 6 51 30 2 36 98 Thermal 313 | . 40 2 . . 40 13 . . . . . 9 1 . . . . . . . . . . . . . 6 1 38 75 88 Explosive 13 | . . 2 . . 2 . 1 . . . . . . . . . . 2 . . . 1 . 1 . 2 . 2 . . . Electromagnetic 547 | . . 2 . 12 56 40 57 10 9 . 16 23 12 12 . 2 18 24 8 2 13 61 6 32 . . 77 36 . . 19 Robot Hit Streak 27 | . 9 3 . 8 9 27 17 12 7 . 8 9 9 17 . 18 13 10 5 9 3 10 8 4 . 1 12 9 11 23 18 Robot Miss Streak 4 | . 3 4 . 1 4 3 4 3 1 . 3 3 3 3 . 3 3 2 2 1 2 4 4 3 . 3 4 4 2 3 3 Penetration Max 1 | . . . . . . . . . . . . . 1 1 . 1 1 . . . . 1 . . . . 1 . . 1 1 Secondary Targets 17 | . 3 . . . . 2 1 . . . . . 3 . . . 1 . . . . 1 . . . . . . . 5 1 Max Gunslinging Chain 1 | . 1 . . . . 1 1 . . . . . 1 . . . 1 . . . . 1 . . . . . . . 1 1 Shots Hit Robots 1324 | . 103 3 . 7 91 118 96 43 7 . 16 45 91 32 . 23 82 24 6 5 8 89 31 16 . 2 84 47 34 80 141 Core Hits 689 | . 35 4 . 3 64 62 43 15 3 . 16 29 54 18 . 13 40 12 1 . 1 30 8 14 . 8 37 24 11 41 103 Critical Hits 49 | . . . . . 3 . 1 3 . . 1 . 2 4 . 1 13 1 . . . 4 2 . . . 6 1 . 2 5 Critical Kills 11 | . . . . . 1 . . 1 . . 1 . . . . . 3 . . . . 1 . . . . 1 . . 1 2 Critical Parts Destroyed 35 | . . . . . 2 . 1 1 . . . . 2 3 . 1 10 1 . . . 3 2 . . . 5 1 . 1 2 Melee Attacks 45 | . . . . . . 12 . . . . 3 . . . . . . . . 6 . 6 10 . . 1 1 5 . 1 . Impact . | . . . . . . . . . . . . . . . . . . . . . . . . . . . . . . . . Slashing 45 | . . . . . . 12 . . . . 3 . . . . . . . . 6 . 6 10 . . 1 1 5 . 1 . Piercing . | . . . . . . . . . . . . . . . . . . . . . . . . . . . . . . . . Sneak Attacks 6 | . . . . . . 1 . . . . . . . . . . . . . . . . 5 . . . . . . . . Combat Hostiles . | . . . . . . . . . . . . . . . . . . . . . . . . . . . . . . . . Follow-up Attacks . | . . . . . . . . . . . . . . . . . . . . . . . . . . . . . . . . Damage Inflicted 44294 | . 1143 167 . 277 2692 3762 2596 1254 388 . 859 1652 2979 1759 . 966 2365 737 147 77 220 2688 1676 867 . 471 3502 2078 1079 2624 5269 Guns 18433 | . 1143 22 . . 503 1123 1067 667 . . 134 556 2212 704 . 495 1850 220 25 25 . 1301 407 . . 50 425 343 783 1775 2603 Cannons 14513 | . . 48 . 189 1300 817 871 128 79 . 113 395 . 267 . . 515 380 63 52 166 1217 106 330 . . 2592 1424 282 849 2330 Explosions 9806 | . . 97 . 88 889 1413 658 459 309 . 612 701 756 788 . 471 . 137 59 . 54 170 116 537 . 421 485 269 . . 317 Melee 1433 | . . . . . . 386 . . . . . . . . . . . . . . . . 1047 . . . . . . . . Ramming 109 | . . . . . . 23 . . . . . . 11 . . . . . . . . . . . . . . 42 14 . 19 Kinetic 16851 | . 797 . . . 409 1123 957 642 . . 122 393 2127 704 . 495 1850 220 . 25 . 1301 407 . . 50 987 875 72 809 2486 Thermal 9115 | . 346 22 . 88 648 1032 261 292 . . 202 357 20 495 . 99 . . . . . 29 116 49 . . 116 150 993 1815 1985 Explosive 1561 | . . 97 . . 416 . 76 . . . . . . . . . . 115 . . . . . . . 421 . 119 . . 317 Electromagnetic 15225 | . . 48 . 189 1219 1198 1302 320 388 . 535 902 821 560 . 372 515 402 147 52 220 1358 106 818 . . 2399 892 . . 462 Impact . | . . . . . . . . . . . . . . . . . . . . . . . . . . . . . . . . Slashing 1433 | . . . . . . 386 . . . . . . . . . . . . . . . . 1047 . . . . . . . . Piercing . | . . . . . . . . . . . . . . . . . . . . . . . . . . . . . . . . Highest Corruption 13 | . 2 2 2 2 . 5 3 4 4 4 4 1 2 2 2 4 3 4 4 4 . 7 8 8 8 8 4 13 . 3 11 Average Corruption 3 | . 2 2 2 2 . 1 2 3 4 4 4 1 1 2 2 2 1 3 4 4 . 3 7 8 8 8 2 5 . 2 3 Corruption Purged . | . . . . . . . . . . . . . . . . . . . . . . . . . . . . . . . . Effects 207 | . 5 3 4 3 . 8 9 19 14 2 14 1 11 3 3 3 5 7 5 . . 11 14 20 4 3 4 17 . 6 9 Message Errors 55 | . 2 2 2 2 . 2 3 8 6 1 5 . . 1 1 1 2 3 2 . . 2 1 2 . 1 2 3 . 1 . Matter Fused 32 | . . . . . . 1 4 4 1 1 2 . . . . . . 1 1 . . 3 2 5 . . . 4 . 1 2 Heat Flow Errors 21 | . . . 1 . . . . 3 2 . 1 . 2 . 1 . . . 1 . . 2 4 1 1 . . 1 . 1 . Energy Discharges 20 | . . . . . . 1 . 2 2 . 2 . 1 . . . 1 2 . . . . . 3 2 . . 2 . 2 . Parts Rejected 2 | . . . . . . . . . . . . . . . . . . . . . . . . 1 . . . 1 . . . Data Loss (minor) 36 | . 1 . 1 1 . 3 1 1 2 . 2 1 6 1 1 2 1 . 1 . . . 3 1 1 1 1 2 . 1 1 Data Loss (major) 5 | . . . . . . . . . . . . . . . . . . . . . . 1 2 1 . 1 . . . . . Misfires 3 | . . . . . . . . . . . . . . . . . . . . . . . . 3 . . . . . . . Misdirections 1 | . . . . . . . . . . . . . . . . . . . . . . . . . . . . 1 . . . Targeting Errors 30 | . 2 1 . . . 1 1 1 1 . 2 . 2 1 . . 1 1 . . . 3 2 2 . . 1 3 . . 5 Weapon Failures 2 | . . . . . . . . . . . . . . . . . . . . . . . . 1 . . . . . . 1 Overload Shots 3 | . . . . . . . . . . . . . . . . . . . . . . . . . . . . . . 1 2 Overflow Damage 1241 | . . . . . 18 57 . 39 22 . 9 30 . 1 . . 21 1 . . . 64 628 41 . . 70 100 6 55 79 Projectiles 413 | . . . . . 10 . . . 19 . . 2 . . . . 21 1 . . . 64 . 18 . . 48 98 6 55 71 Explosions 200 | . . . . . 8 57 . 39 3 . 9 28 . 1 . . . . . . . . . 23 . . 22 2 . . 8 Melee 628 | . . . . . . . . . . . . . . . . . . . . . . . 628 . . . . . . . . Knockbacks 22 | . . . . . . . . . . . . . . . . . . . . . . . . . . . 6 6 . . 10 Impact . | . . . . . . . . . . . . . . . . . . . . . . . . . . . . . . . . Kinetic 20 | . . . . . . . . . . . . . . . . . . . . . . . . . . . 6 5 . . 9 Secondary 2 | . . . . . . . . . . . . . . . . . . . . . . . . . . . . 1 . . 1 Self-Inflicted Damage 898 | . . 49 . . 80 324 . . 26 . 69 20 3 10 . 102 . 14 . . . 38 . 45 . . . 102 7 . 9 Shots 30 | . . 1 . . 4 12 . . 1 . 2 1 . 1 . 1 . 1 . . . 2 . 2 . . . 2 . . . Rammed 11 | . . . . . . 4 . . . . . . 2 . . . . . . . . . . . . . . 1 1 . 3 Targets Rammed 13 | . . . . . . 5 . . . . . . 2 . . . . . . . . . . . . . . 1 1 . 4 Kicked 1 | . . . . . . . . . . . . . . . . . . . . . . . . . . . . . . . 1 Crushed 1 | . . . . . . 1 . . . . . . . . . . . . . . . . . . . . . . . . . Highest Temperature 411 | . 168 51 178 246 42 289 45 213 242 . 99 126 202 121 112 . 306 144 223 65 66 377 217 160 185 . 386 172 411 169 183 Average Temperature 73 | . 47 19 98 106 15 104 12 60 92 . 24 50 51 46 57 . 92 62 66 40 33 102 92 54 99 . 99 23 144 42 34 Received Heat Transfer 4091 | . 342 . . 48 450 621 240 60 45 . 18 96 362 18 18 165 111 45 . . . 189 6 9 . . 195 342 . 117 594 Effects 11 | . . . . . . 1 . . . . . . . . . . . . . . . 3 1 . . . 1 . 5 . . Shutdowns 2 | . . . . . . . . . . . . . . . . . . . . . . 1 . . . . . . 1 . . Energy Bleed 1 | . . . . . . . . . . . . . . . . . . . . . . 1 . . . . . . . . . Interference 2 | . . . . . . 1 . . . . . . . . . . . . . . . . 1 . . . . . . . . Short Circuit 2 | . . . . . . . . . . . . . . . . . . . . . . 1 . . . . 1 . . . . Damage (major) 4 | . . . . . . . . . . . . . . . . . . . . . . . . . . . . . 4 . . Siege Activations 2 | . . . . . . . . . . . . . . 1 . 1 . . . . . . . . . . . . . . . Total Turns 35 | . . . . . . . . . . . . . . 26 . 9 . . . . . . . . . . . . . . . Longest Duration 26 | . . . . . . . . . . . . . . 26 . 9 . . . . . . . . . . . . . . . Robots Corrupted 55 | . . . . 1 2 2 6 1 3 . 2 . 3 3 . . 2 2 1 . 2 8 . 2 . . 12 3 . . . Combat Hostiles 48 | . . . . 1 1 2 6 1 3 . 2 . 3 3 . . 2 2 1 . 2 6 . 2 . . 8 3 . . . Parts Fried 123 | . . . . 1 7 10 12 . 4 . 4 4 9 3 . 1 6 3 3 . 4 9 1 6 . . 23 13 . . . Impact Corruptions . | . . . . . . . . . . . . . . . . . . . . . . . . . . . . . . . . Robots Melted 1 | . . . . . . . . . . . . . . . . . . . . . . . . . . . . . 1 . . Combat Hostiles 1 | . . . . . . . . . . . . . . . . . . . . . . . . . . . . . 1 . . Parts Melted 24 | . 1 . . . 5 2 . . . . . 1 . 1 . . . . . . . . . . . . . . 3 7 4 Heat Transferred 10834 | . 775 50 . 100 1062 1236 250 300 . . 200 535 37 350 . 100 . . . . . 50 100 100 . . 111 50 1147 1998 2283 Parts Sabotaged 4 | . . . . . . . . . . . . . . . . . . . . . . . . . . . . 4 . . . Parts Stolen . | . . . . . . . . . . . . . . . . . . . . . . . . . . . . . . . . Parts Stripped . | . . . . . . . . . . . . . . . . . . . . . . . . . . . . . . . . Power Chain Reactions 29 | . . . . . 2 6 5 2 . . 3 4 . 2 . 1 . . . . . 1 1 1 . . . 1 . . . Missiles Intercepted . | . . . . . . . . . . . . . . . . . . . . . . . . . . . . . . . . Alert | -11 -10 -10 -10 -9 -8 -8 -7 -7 -7 -7 -6 -6 -6 -6 -6 -6 -5 -5 -5 -5 -4 -4 -4 -4 -4 -3 -3 -3 -2 -2 -1 ------- Run | Scr Mat Min Exi Min Mat Sto Fac Low Low Dat Pro Fac Ext Cet Arc Hub Fac Upp Upp War Pro Fac Upp Upp Zhi Pro Res Arm Res Tes Acc Peak Influence 1254 | . 273 143 . 135 706 795 516 . . . . 500 1254 1088 828 449 443 . . . . 927 . . . . 494 572 325 577 869 Initial 701 | . . 53 . . 52 297 361 . . . . 95 175 701 435 278 219 . . . . 31 . . . . 74 259 265 123 345 Average 382 | . 152 137 . 69 432 598 373 . . . . 257 343 885 638 264 287 . . . . 505 . . . . 276 386 250 480 587 Maximum Alert Level 4 | . 1 . . . 3 3 2 . . . . 2 4 3 3 2 2 . . . . 3 . . . . 2 2 1 2 3 Low Security (%) 19 | 100 65 100 . 100 14 . . . . . . 20 29 . . 21 6 . . . . 26 . . . . 18 . 30 5 . Level 1 42 | . 34 . . . 25 13 73 . . . . 65 42 . . 75 83 . . . . 13 . . . . 72 59 69 15 21 Level 2 27 | . . . . . 58 61 26 . . . . 13 22 3 48 3 9 . . . . 16 . . . . 8 40 . 79 47 Level 3 10 | . . . . . 2 24 . . . . . . 1 96 51 . . . . . . 43 . . . . . . . . 31 Level 4 . | . . . . . . . . . . . . . 3 . . . . . . . . . . . . . . . . . . Level 5 . | . . . . . . . . . . . . . . . . . . . . . . . . . . . . . . . . High Security . | . . . . . . . . . . . . . . . . . . . . . . . . . . . . . . . . Max Security . | . . . . . . . . . . . . . . . . . . . . . . . . . . . . . . . . Squads Dispatched 51 | . 5 . . . 6 5 6 . . . . 1 5 . . 1 1 . . . . 6 . . . . 3 2 2 5 3 Investigation 11 | . 3 . . . 4 1 2 . . . . . . . . . . . . . . 1 . . . . . . . . . Extermination 7 | . . . . . . . 1 . . . . . . . . . 1 . . . . 1 . . . . 2 1 . . 1 Reinforcement 23 | . 2 . . . 2 3 3 . . . . 1 5 . . 1 . . . . . 1 . . . . . . 2 2 1 Assault 7 | . . . . . . 1 . . . . . . . . . . . . . . . 3 . . . . . 1 . 1 1 Garrison 3 | . . . . . . . . . . . . . . . . . . . . . . . . . . . 1 . . 2 . Intercept . | . . . . . . . . . . . . . . . . . . . . . . . . . . . . . . . . Construction Impeded 5 | . . . . . 1 1 . . . . . 1 2 . . . . . . . . . . . . . . . . . . Haulers Reinforced 2 | . . . . . . . 1 . . . . . . . . . . . . . . . . . . . . . . . 1 Stealth | -11 -10 -10 -10 -9 -8 -8 -7 -7 -7 -7 -6 -6 -6 -6 -6 -6 -5 -5 -5 -5 -4 -4 -4 -4 -4 -3 -3 -3 -2 -2 -1 --------- Run | Scr Mat Min Exi Min Mat Sto Fac Low Low Dat Pro Fac Ext Cet Arc Hub Fac Upp Upp War Pro Fac Upp Upp Zhi Pro Res Arm Res Tes Acc Distress Signals 35 | . 4 . . . 4 2 . . . . . . 1 2 . . 2 . . . . 4 . . . . 3 1 5 3 4 Communications Jammed 115 | . . . . . . . . . . . . . . . . . . . . . . . . . . . . . . . 115 Distress Signals 115 | . . . . . . . . . . . . . . . . . . . . . . . . . . . . . . . 115 Times Spotted 575 | . 25 6 . 5 51 42 34 8 4 . 13 9 52 8 19 6 27 7 1 3 2 31 5 12 . 1 40 39 34 29 62 Peak Tracking Total 16 | . 4 3 . 3 7 9 5 4 4 . 4 3 10 5 16 3 5 4 1 2 2 7 4 6 . 3 11 13 8 10 16 Tactical Retreats 28 | . . . . 1 2 1 1 1 1 . . 1 1 . . . . . . . . 3 1 3 . . 3 1 1 . 7 Traps | -11 -10 -10 -10 -9 -8 -8 -7 -7 -7 -7 -6 -6 -6 -6 -6 -6 -5 -5 -5 -5 -4 -4 -4 -4 -4 -3 -3 -3 -2 -2 -1 ------- Run | Scr Mat Min Exi Min Mat Sto Fac Low Low Dat Pro Fac Ext Cet Arc Hub Fac Upp Upp War Pro Fac Upp Upp Zhi Pro Res Arm Res Tes Acc Traps Triggered 20 | . 5 . . . 3 2 3 . . . . 2 3 . . . . . . . . 1 . . . . . . . . 1 Indirectly 1 | . . . . . . . . . . . . 1 . . . . . . . . . . . . . . . . . . . Trap Hack Attempts . | . . . . . . . . . . . . . . . . . . . . . . . . . . . . . . . . Triggered . | . . . . . . . . . . . . . . . . . . . . . . . . . . . . . . . . Disarmed . | . . . . . . . . . . . . . . . . . . . . . . . . . . . . . . . . Reprogrammed . | . . . . . . . . . . . . . . . . . . . . . . . . . . . . . . . . Reused . | . . . . . . . . . . . . . . . . . . . . . . . . . . . . . . . . Traps Extracted . | . . . . . . . . . . . . . . . . . . . . . . . . . . . . . . . . Installed . | . . . . . . . . . . . . . . . . . . . . . . . . . . . . . . . . Triggered 12 | . . . . . . . . . . . . . . . . . . 2 . 6 1 . 2 1 . . . . . . . Machines | -11 -10 -10 -10 -9 -8 -8 -7 -7 -7 -7 -6 -6 -6 -6 -6 -6 -5 -5 -5 -5 -4 -4 -4 -4 -4 -3 -3 -3 -2 -2 -1 ---------- Run | Scr Mat Min Exi Min Mat Sto Fac Low Low Dat Pro Fac Ext Cet Arc Hub Fac Upp Upp War Pro Fac Upp Upp Zhi Pro Res Arm Res Tes Acc Machines Disabled 63 | . 2 1 . 2 2 6 3 . . . . 11 4 . 2 7 4 . . . . 5 . . . . 2 3 1 6 2 Max in Single Turn 7 | . 1 1 . 2 1 1 2 . . . . 5 3 . . 7 1 . . . . 3 . . . . 1 1 1 1 1 Garrison Access 5 | . . . . . . . 2 . . . . . . . . . 2 . . . . . . . . . . . . 1 . Network Hub 1 | . . . . . . . . . . . . . . . . 1 . . . . . . . . . . . . . . . Machines Sabotaged . | . . . . . . . . . . . . . . . . . . . . . . . . . . . . . . . . Garrisons Compromised . | . . . . . . . . . . . . . . . . . . . . . . . . . . . . . . . . Overloaded Fab Kills . | . . . . . . . . . . . . . . . . . . . . . . . . . . . . . . . . Fab Network Shutdowns 1 | . . . . . . . . . . . . . . . . . . . . . . 1 . . . . . . . . . Hacking | -11 -10 -10 -10 -9 -8 -8 -7 -7 -7 -7 -6 -6 -6 -6 -6 -6 -5 -5 -5 -5 -4 -4 -4 -4 -4 -3 -3 -3 -2 -2 -1 --------- Run | Scr Mat Min Exi Min Mat Sto Fac Low Low Dat Pro Fac Ext Cet Arc Hub Fac Upp Upp War Pro Fac Upp Upp Zhi Pro Res Arm Res Tes Acc Machines Accessed 66 | . 1 . 1 . 6 7 6 . . 2 . 2 1 1 1 3 14 . . 2 . 9 . . . . 3 4 . 1 2 Terminals 34 | . 1 . . . 3 6 2 . . . . . 1 1 . 3 6 . . . . 5 . . . . 2 2 . 1 1 Fabricators 6 | . . . . . . . 1 . . . . . . . . . 3 . . . . 1 . . . . . 1 . . . Repair Stations 10 | . . . . . 1 . 1 . . . . 2 . . . . 2 . . . . 2 . . . . 1 1 . . . Recycling Units . | . . . . . . . . . . . . . . . . . . . . . . . . . . . . . . . . Scanalyzers 3 | . . . . . 1 . . . . . . . . . . . 1 . . . . 1 . . . . . . . . . Garrison Access 7 | . . . . . 1 1 2 . . . . . . . . . 2 . . . . . . . . . . . . . 1 Total Hacks 189 | . 3 . 1 . 12 14 16 . . 10 . 4 1 2 25 8 36 . . 6 . 29 . . . . 6 9 . 1 6 Successful 105 | . 2 . 1 . 7 5 8 . . 10 . 3 . 1 25 1 23 . . 6 . 8 . . . . . 3 . . 2 Failed 83 | . . . . . 5 9 8 . . . . 1 1 1 . 7 13 . . . . 21 . . . . 6 6 . 1 4 Catastrophic 16 | . . . . . . 1 . . . . . 1 . . . 2 3 . . . . 5 . . . . 2 1 . . 1 Database Lockouts 1 | . 1 . . . . . . . . . . . . . . . . . . . . . . . . . . . . . . Manual 25 | . 2 . . . 2 5 2 . . . . . 1 1 . 8 2 . . . . . . . . . . 1 . 1 . Terminals 75 | . 3 . . . 4 12 3 . . . . . 1 2 . 8 10 . . . . 17 . . . . 5 4 . 1 5 Fabricators 21 | . . . . . . . 4 . . . . . . . . . 10 . . . . 4 . . . . . 3 . . . Repair Stations 26 | . . . . . 2 . 4 . . . . 4 . . . . 8 . . . . 5 . . . . 1 2 . . . Recycling Units . | . . . . . . . . . . . . . . . . . . . . . . . . . . . . . . . . Scanalyzers 12 | . . . . . 4 . . . . . . . . . . . 5 . . . . 3 . . . . . . . . . Garrison Access 13 | . . . . . 2 2 5 . . . . . . . . . 3 . . . . . . . . . . . . . 1 Terminal Hacks 60 | . 2 . 1 . 1 5 1 . . 10 . . . 1 25 1 3 . . 6 . 1 . . . . . 1 . . 2 Record 33 | . . . 1 . . . . . . . . . . . 25 . . . . 6 . . . . . . . . . . 1 Part Schematic 8 | . . . . . . 1 . . . 6 . . . . . . 1 . . . . . . . . . . . . . . Robot Schematic 4 | . . . . . . . . . . 4 . . . . . . . . . . . . . . . . . . . . . Prototype ID Bank 2 | . 1 . . . . 1 . . . . . . . . . . . . . . . . . . . . . . . . . Open Door 5 | . . . . . . 3 . . . . . . . 1 . . . . . . . . . . . . . 1 . . . Branch Access Points 2 | . . . . . . . . . . . . . . . . . 1 . . . . 1 . . . . . . . . . Repair Station Index 1 | . . . . . . . . . . . . . . . . . 1 . . . . . . . . . . . . . . Scanalyzer Index 1 | . . . . . 1 . . . . . . . . . . . . . . . . . . . . . . . . . . Unreport Threat 2 | . . . . . . . . . . . . . . . . 1 . . . . . . . . . . . . . . 1 Hauler Manifests 2 | . 1 . . . . . 1 . . . . . . . . . . . . . . . . . . . . . . . . Fabricator Hacks 13 | . . . . . . . 1 . . . . . . . . . 8 . . . . 2 . . . . . 2 . . . Load Schematic 6 | . . . . . . . 1 . . . . . . . . . 3 . . . . 1 . . . . . 1 . . . Build 7 | . . . . . . . . . . . . . . . . . 5 . . . . 1 . . . . . 1 . . . Repair Station Hacks 17 | . . . . . 2 . 4 . . . . 3 . . . . 5 . . . . 3 . . . . . . . . . Scan Component 10 | . . . . . 1 . 2 . . . . 2 . . . . 3 . . . . 2 . . . . . . . . . Repair 7 | . . . . . 1 . 2 . . . . 1 . . . . 2 . . . . 1 . . . . . . . . . Recycling Unit Hacks . | . . . . . . . . . . . . . . . . . . . . . . . . . . . . . . . . Scanalyzer 10 | . . . . . 4 . . . . . . . . . . . 4 . . . . 2 . . . . . . . . . Insert Component 5 | . . . . . 2 . . . . . . . . . . . 2 . . . . 1 . . . . . . . . . Analyze 5 | . . . . . 2 . . . . . . . . . . . 2 . . . . 1 . . . . . . . . . Garrison Access Hacks 4 | . . . . . . . 2 . . . . . . . . . 2 . . . . . . . . . . . . . . Seal Access 4 | . . . . . . . 2 . . . . . . . . . 2 . . . . . . . . . . . . . . Unauthorized Hacks 1 | . . . . . . . . . . . . . . . . . 1 . . . . . . . . . . . . . . Terminals . | . . . . . . . . . . . . . . . . . . . . . . . . . . . . . . . . Fabricators 1 | . . . . . . . . . . . . . . . . . 1 . . . . . . . . . . . . . . Siphon 1 | . . . . . . . . . . . . . . . . . 1 . . . . . . . . . . . . . . Repair Stations . | . . . . . . . . . . . . . . . . . . . . . . . . . . . . . . . . Recycling Units . | . . . . . . . . . . . . . . . . . . . . . . . . . . . . . . . . Scanalyzers . | . . . . . . . . . . . . . . . . . . . . . . . . . . . . . . . . Garrison Access . | . . . . . . . . . . . . . . . . . . . . . . . . . . . . . . . . Data Cores Recovered . | . . . . . . . . . . . . . . . . . . . . . . . . . . . . . . . . Used . | . . . . . . . . . . . . . . . . . . . . . . . . . . . . . . . . Hacking Detections 41 | . 1 . . . 4 4 3 . . . . 1 1 1 . 3 7 . . . . 7 . . . . 3 3 . 1 2 Full Trace Events 6 | . . . . . 2 1 2 . . . . . . . . . . . . . . 1 . . . . . . . . . Feedback Events . | . . . . . . . . . . . . . . . . . . . . . . . . . . . . . . . . Feedback Blocked . | . . . . . . . . . . . . . . . . . . . . . . . . . . . . . . . . Robot Schematics Acquired 4 | . . . . . . . . . . 4 . . . . . . . . . . . . . . . . . . . . . Robots Built . | . . . . . . . . . . . . . . . . . . . . . . . . . . . . . . . . Matter . | . . . . . . . . . . . . . . . . . . . . . . . . . . . . . . . . Time . | . . . . . . . . . . . . . . . . . . . . . . . . . . . . . . . . Total Robot Build Rating . | . . . . . . . . . . . . . . . . . . . . . . . . . . . . . . . . Part Schematics Acquired 12 | . . . . . 1 1 . . . 6 . . . . . . 3 . . . . 1 . . . . . . . . . Parts Built 8 | . . . . . . . . . . . . . . . . . 4 . . . . 2 . . . . . 2 . . . Matter 1060 | . . . . . . . . . . . . . . . . . 636 . . . . 212 . . . . . 212 . . . Time 406 | . . . . . . . . . . . . . . . . . 265 . . . . 35 . . . . . 106 . . . Total Part Build Rating 48 | . . . . . . . . . . . . . . . . . 24 . . . . 12 . . . . . 12 . . . Parts Repaired 7 | . . . . . 1 . 2 . . . . 1 . . . . 2 . . . . 1 . . . . . . . . . Time 402 | . . . . . 50 . 98 . . . . 61 . . . . 119 . . . . 74 . . . . . . . . . Parts Recycled . | . . . . . . . . . . . . . . . . . . . . . . . . . . . . . . . . Recycled Matter . | . . . . . . . . . . . . . . . . . . . . . . . . . . . . . . . . Retrieved Matter . | . . . . . . . . . . . . . . . . . . . . . . . . . . . . . . . . Retrieved Components . | . . . . . . . . . . . . . . . . . . . . . . . . . . . . . . . . Parts Scanalyzed 5 | . . . . . 2 . . . . . . . . . . . 2 . . . . 1 . . . . . . . . . Part Schematics Acquired 4 | . . . . . 1 . . . . . . . . . . . 2 . . . . 1 . . . . . . . . . Parts Damaged . | . . . . . . . . . . . . . . . . . . . . . . . . . . . . . . . . Bothacking | -11 -10 -10 -10 -9 -8 -8 -7 -7 -7 -7 -6 -6 -6 -6 -6 -6 -5 -5 -5 -5 -4 -4 -4 -4 -4 -3 -3 -3 -2 -2 -1 ------------ Run | Scr Mat Min Exi Min Mat Sto Fac Low Low Dat Pro Fac Ext Cet Arc Hub Fac Upp Upp War Pro Fac Upp Upp Zhi Pro Res Arm Res Tes Acc Used RIF Installer . | . . . . . . . . . . . . . . . . . . . . . . . . . . . . . . . . Robots Hacked . | . . . . . . . . . . . . . . . . . . . . . . . . . . . . . . . . Non-combat . | . . . . . . . . . . . . . . . . . . . . . . . . . . . . . . . . Combat . | . . . . . . . . . . . . . . . . . . . . . . . . . . . . . . . . Robot Hacks Applied . | . . . . . . . . . . . . . . . . . . . . . . . . . . . . . . . . Relay Couplers Released 8 | . . . . . . . . . . . . . . . . . . . . . . 4 . . . . . . 3 1 . Machine Destruction 1 | . . . . . . . . . . . . . . . . . . . . . . . . . . . . . . 1 . Programmers 7 | . . . . . . . . . . . . . . . . . . . . . . 4 . . . . . . 3 . . Robots Rewired 19 | . . . . . . . . . . . . . 11 . . . . . . 4 . . . . . . . 4 . . . Allies Hacked . | . . . . . . . . . . . . . . . . . . . . . . . . . . . . . . . . Hacks Repelled . | . . . . . . . . . . . . . . . . . . . . . . . . . . . . . . . . Allies | -11 -10 -10 -10 -9 -8 -8 -7 -7 -7 -7 -6 -6 -6 -6 -6 -6 -5 -5 -5 -5 -4 -4 -4 -4 -4 -3 -3 -3 -2 -2 -1 -------- Run | Scr Mat Min Exi Min Mat Sto Fac Low Low Dat Pro Fac Ext Cet Arc Hub Fac Upp Upp War Pro Fac Upp Upp Zhi Pro Res Arm Res Tes Acc Total Allies 47 | . . 1 . . . . . . . . 1 . 29 5 . . . . . 4 . . . . . . 3 4 . . . Largest Group 13 | . . 1 1 . . . . . . . 1 1 13 10 8 . . . . 4 . . . . . . 3 4 . . . Highest-Rated Group 693 | . . 31 31 . . . . . . . 94 94 506 693 487 . . . . 191 . . . . . . 138 192 . . . Highest-Rated Ally 156 | . . 31 31 . . . . . . . 94 94 156 150 94 . . . . 60 . . . . . . 46 48 . . . Total Orders . | . . . . . . . . . . . . . . . . . . . . . . . . . . . . . . . . Ally Attacks 356 | . . . . . . . . . . . 17 1 197 43 63 . . . . 1 . . . . . . 6 28 . . . Total Damage 8607 | . . . . . . . . . . . 561 272 3807 874 1903 . . . . 57 . . . . . . 172 961 . . . Kills 60 | . . . . . . . . . . . 3 1 27 7 14 . . . . 1 . . . . . . 1 6 . . . Allies Corrupted 1 | . . . . . . . . . . . . . . . . . . . . . . . . . . . 1 . . . . Allies Melted 2 | . . . . . . . . . . . . . 1 . 1 . . . . . . . . . . . . . . . . Intel | -11 -10 -10 -10 -9 -8 -8 -7 -7 -7 -7 -6 -6 -6 -6 -6 -6 -5 -5 -5 -5 -4 -4 -4 -4 -4 -3 -3 -3 -2 -2 -1 ------- Run | Scr Mat Min Exi Min Mat Sto Fac Low Low Dat Pro Fac Ext Cet Arc Hub Fac Upp Upp War Pro Fac Upp Upp Zhi Pro Res Arm Res Tes Acc Robot Analysis Total . | . . . . . . . . . . . . . . . . . . . . . . . . . . . . . . . . Derelict Logs Recovered 11 | . . 2 . 2 . . . 1 1 . . . . . . . . 2 . . 1 . 2 . . . . . . . . Drone Launches . | . . . . . . . . . . . . . . . . . . . . . . . . . . . . . . . . Drone Recoveries . | . . . . . . . . . . . . . . . . . . . . . . . . . . . . . . . . Exploration | -11 -10 -10 -10 -9 -8 -8 -7 -7 -7 -7 -6 -6 -6 -6 -6 -6 -5 -5 -5 -5 -4 -4 -4 -4 -4 -3 -3 -3 -2 -2 -1 ------------- Run | Scr Mat Min Exi Min Mat Sto Fac Low Low Dat Pro Fac Ext Cet Arc Hub Fac Upp Upp War Pro Fac Upp Upp Zhi Pro Res Arm Res Tes Acc Turns Passed 18833 | 86 842 318 406 319 1354 1299 1749 669 495 141 600 508 963 372 106 322 1447 451 291 613 273 1008 470 530 131 130 609 606 630 587 508 Spaces Moved 13535 | 49 445 239 338 236 603 571 959 469 327 80 415 274 497 185 81 179 1113 504 398 695 347 966 588 661 178 169 533 485 390 287 274 Core 222 | 4 . . . . . . . . . . . . . . . . . . . . . . . . . . . 3 85 . 130 Treads 2974 | 41 146 . . 22 603 571 419 16 106 57 32 52 128 115 10 151 10 . . . . . . . . . . 15 278 202 . Legs 256 | . . . . . . . . . . . . . . . . . . . . . . . . . . . . . 27 85 144 Wheels 3868 | 4 299 239 338 214 . . 540 453 221 23 383 222 369 70 71 28 394 . . . . . . . . . . . . . . Hover 6215 | . . . . . . . . . . . . . . . . . 709 504 398 695 347 966 588 661 178 169 533 467 . . . Flight . | . . . . . . . . . . . . . . . . . . . . . . . . . . . . . . . . Fastest Speed 50 | 50 100 120 120 120 160 161 120 120 120 120 120 100 100 120 120 110 68 68 68 68 68 64 64 64 64 64 64 50 50 120 50 Average Speed 105 | 146 125 120 120 127 167 171 149 122 145 177 126 127 132 153 127 153 88 68 68 68 68 65 64 64 64 64 64 71 137 149 87 Slowest Speed 250 | 160 180 120 120 200 200 190 200 200 200 200 200 200 220 180 180 160 180 68 68 142 68 68 64 64 64 64 64 150 250 180 200 Overloaded Moves . | . . . . . . . . . . . . . . . . . . . . . . . . . . . . . . . . Propulsion Burnouts . | . . . . . . . . . . . . . . . . . . . . . . . . . . . . . . . . Robots Hopped . | . . . . . . . . . . . . . . . . . . . . . . . . . . . . . . . . Cave-ins Triggered . | . . . . . . . . . . . . . . . . . . . . . . . . . . . . . . . . Exploration Rate (%) 51 | 5 72 63 84 63 64 91 29 72 52 71 65 11 68 65 76 27 31 78 53 78 50 29 70 70 58 44 20 32 17 34 12 Regions Visited 31 Branch Regions 22 Pre-discovered Areas 7 | . . 1 2 1 . . . 1 . . . . . . . . . 1 . 1 . . . . . . . . . . . Known Exits Taken 24 | . . . . . . . 1 1 1 1 1 1 1 1 1 1 1 1 1 1 1 1 1 1 1 1 1 1 1 1 . Unknown Exits Taken 7 | 1 1 1 1 1 1 1 . . . . . . . . . . . . . . . . . . . . . . . . . Scrap Searched 18 | . . 1 . 2 . . . 1 3 . 2 . . . . . . 1 2 . 1 . 2 3 . . . . . . . Spaces Dug 82 | . . . . . 8 2 . . . . 3 . . . . . . 18 . 1 . 17 . 22 . 1 1 5 . 4 . Terrain Destroyed 637 | . . 16 . 17 24 35 12 8 . . 10 21 2 55 . 167 21 20 . 1 . 76 13 22 . 22 20 38 3 21 13 Melee 20 | . . . . . . 2 . . . . 3 . . . . . . . . 1 . 6 . . . 1 1 5 . 1 . Projectile 127 | . . . . . 1 1 . . . . . . 2 23 . 7 21 2 . . . 3 . . . 3 19 9 3 20 13 AOE 490 | . . 16 . 17 23 32 12 8 . . 7 21 . 32 . 160 . 18 . . . 67 13 22 . 18 . 24 . . . Terrain Rammed . | . . . . . . . . . . . . . . . . . . . . . . . . . . . . . . . . Walls Destroyed . | . . . . . . . . . . . . . . . . . . . . . . . . . . . . . . . . Machines Disabled . | . . . . . . . . . . . . . . . . . . . . . . . . . . . . . . . . Actions | -11 -10 -10 -10 -9 -8 -8 -7 -7 -7 -7 -6 -6 -6 -6 -6 -6 -5 -5 -5 -5 -4 -4 -4 -4 -4 -3 -3 -3 -2 -2 -1 --------- Run | Scr Mat Min Exi Min Mat Sto Fac Low Low Dat Pro Fac Ext Cet Arc Hub Fac Upp Upp War Pro Fac Upp Upp Zhi Pro Res Arm Res Tes Acc Total 16397 | 61 581 261 339 244 820 749 1158 517 335 79 458 391 725 250 84 200 1485 574 410 823 371 1205 628 731 194 178 702 661 440 356 387 Wait 914 | . 35 12 . . 69 12 66 4 . . 2 67 43 12 . 5 260 37 1 18 3 116 . 37 . . 47 62 5 1 . Move 13504 | 48 444 238 337 235 602 570 958 468 326 79 414 273 496 184 80 178 1112 503 397 694 346 965 587 660 177 168 532 484 389 286 274 Hop . | . . . . . . . . . . . . . . . . . . . . . . . . . . . . . . . . Pick Up 164 | 4 17 1 1 1 13 11 15 . 1 . 4 6 4 16 . . 16 4 3 6 4 11 2 3 1 . 12 4 . 3 1 Fast Attach 146 | 5 1 . . . 11 8 6 . . . . 2 6 1 . 2 8 . . 10 2 3 . 2 8 . 9 10 24 8 20 Attach 73 | 2 4 . . . 2 3 5 4 . . 3 3 6 1 4 . 7 3 . . 1 7 1 . . . 4 8 . 1 4 Detach 8 | . . . . . . . . . . . . . 2 . . 2 . . . . . 1 . . . . 1 2 . . . Swap 285 | 1 2 6 . . 25 23 30 10 3 . 15 11 11 6 . 1 24 7 4 5 3 26 12 11 . 4 24 12 1 4 4 Drop 197 | 1 2 1 1 2 25 18 9 . . . . 5 4 15 . . 15 1 2 17 6 12 . 1 8 . 17 11 4 10 10 Fire 856 | . 76 3 . 6 73 87 69 31 5 . 17 24 52 15 . 12 43 19 3 5 6 58 16 17 . 5 55 36 16 42 65 Melee 45 | . . . . . . 12 . . . . 3 . . . . . . . . 6 . 6 10 . . 1 1 5 . 1 . Ram 5 | . . . . . . . . . . . . . 1 . . . . . . . . . . . . . . 2 1 . 1 Kick 3 | . . . . . . . . . . . . . . . . . . . . . . . . . . . . . . . 3 Crush 6 | . . . . . . 5 . . . . . . 1 . . . . . . . . . . . . . . . . . . Escape Stasis 23 | . . . . . . . . . . . . . 18 . . . . . . . . . . . . . . . . . 5 Rewire 168 | . . . . . . . . . . . . . 81 . . . . . . 62 . . . . . . . 25 . . . Trap . | . . . . . . . . . . . . . . . . . . . . . . . . . . . . . . . . Miscellaneous . | . . . . . . . . . . . . . . . . . . . . . . . . . . . . . . . . Route ------- -11/Scrapyard -10/Materials (discovered 4 exits: [*Mat x2] / [*Min x2]) -10/Mines (discovered 2 exits: [*Mat] / *Exi) -10/Exiles -9/Mines -8/Materials (discovered 3 exits: *Fac x2 / *Sto) -8/Storage -7/Factory (discovered 3 exits: *Fac x2 / *Low) -7/Lower Caves -7/Lower Caves -7/Data Miner -6/Proximity Caves -6/Factory -6/Extension (discovered 2 exits: *Fac / *Cet) -6/Cetus (discovered 2 exits: *Fac / *Arc) -6/Archives -6/Hub_04(d) -5/Factory (discovered 3 exits: Fac / *Upp x2) -5/Upper Caves -5/Upper Caves (discovered 2 exits: *Fac / *War) -5/Warlord -4/Proximity Caves -4/Factory (discovered 3 exits: *Res / *Upp x2) -4/Upper Caves -4/Upper Caves -4/Zhirov -3/Proximity Caves -3/Research (discovered 2 exits: *Res / *Arm) -3/Armory -2/Research (discovered 2 exits: *Tes x2) -2/Testing -1/Access History --------- Turn | Location | Event 12 | -11/Scrapyard | Discovered new exit (range 15) 87 | -11/Scrapyard | Entered Materials 316 | -10/Materials | Build established: Mutant 370 | -10/Materials | Discovered new exit (range 16) 373 | -10/Materials | Discovered new exit (range 14) 461 | -10/Materials | Discovered new exit (range 6) 563 | -10/Materials | Central database locked down 752 | -10/Materials | Core integrity fell below 50% 782 | -10/Materials | Discovered new exit (range 3) 929 | -10/Materials | Entered Mines 986 | -10/Mines | Learned location of Storage (-8) 1100 | -10/Mines | Assembled infested the area 1159 | -10/Mines | Met 8R-AWN 1164 | -10/Mines | Discovered new exit (range 10) 1225 | -10/Mines | Learned 2 Materials zone layouts 1236 | -10/Mines | Escorted by a lone wolf Derelict 1242 | -10/Mines | Discovered new exit (range 5) 1247 | -10/Mines | Entered Exiles 1247 | -10/Exiles | Accompanied by 1 ally 1280 | -10/Exiles | Welcomed by 8R-AWN 1302 | -10/Exiles | Met EX-HEX 1339 | -10/Exiles | Met EX-BIN 1388 | -10/Exiles | Met EX-DEC 1468 | -10/Exiles | Visited The Gauntlet 1598 | -10/Exiles | Learned location of Zion (-6) 1640 | -10/Exiles | Discovered new exit (range 14) 1653 | -10/Exiles | Entered Mines 1867 | -9/Mines | Learned location of 1 exit from Proximity Caves 1892 | -9/Mines | Discovered new exit (range 3) 1920 | -9/Mines | Core integrity fell below 20% 1972 | -9/Mines | Entered Materials 1972 | -8/Materials | Evolved 4 slots: Propulsion x1, Utility x3 2474 | -8/Materials | Build established: Scavenger-Mutant 2699 | -8/Materials | Discovered new exit (range 12) 2802 | -8/Materials | Build established: Mutant 2908 | -8/Materials | Repaired Cmb. Airjet 3152 | -8/Materials | Discovered new exit (range 7) 3178 | -8/Materials | Discovered new exit (range 15) 3326 | -8/Materials | Entered Storage 3546 | -8/Storage | Destroyed 9 combat bots 4144 | -8/Storage | Found Prototype Protection 4144 | -8/Storage | Identified Lgt. Regenerative Plating 4526 | -8/Storage | First assault squad dispatched 4553 | -8/Storage | Discovered new exit (range 16) 4625 | -8/Storage | Entered Factory 4625 | -7/Factory | Evolved 2 slots: Utility x2 5087 | -7/Factory | Discovered new exit (range 7) 5171 | -7/Factory | Assembled infested ambush trap array 5234 | -7/Factory | Build established: Hauler-Mutant 5608 | -7/Factory | Repaired Adv. EMP Blaster 5653 | -7/Factory | Repaired EM Pulse Cannon 5875 | -7/Factory | Discovered new exit (range 10) 5886 | -7/Factory | Identified exit to Lower Caves 6203 | -7/Factory | Discovered new exit (range 16) 6246 | -7/Factory | Identified exit to Factory 6374 | -7/Factory | Entered Lower Caves 6500 | -7/Lower Caves | Spotted B-75 Beast 6541 | -7/Lower Caves | Destroyed B-75 Beast 6563 | -7/Lower Caves | Lost 4 parts (1n3u) 6920 | -7/Lower Caves | Encountered a Warlord checkpoint 6936 | -7/Lower Caves | Discovered new exit (range 12) 7040 | -7/Lower Caves | Identified exit to Lower Caves 7043 | -7/Lower Caves | Entered another Lower Caves area 7343 | -7/Lower Caves | Discovered new exit (range 8) 7437 | -7/Lower Caves | Learned Factory emergency access door positions 7536 | -7/Lower Caves | Identified exit to Data Miner 7538 | -7/Lower Caves | Entered Data Miner 7538 | -7/Data Miner | Discovered new exit (range 6) 7576 | -7/Data Miner | Met Data Miner 7644 | -7/Data Miner | Received God Mode back door access code from Data Miner 7678 | -7/Data Miner | Identified exit to Proximity Caves 7679 | -7/Data Miner | Entered Proximity Caves 7871 | -6/Proximity Caves | Escorted by Enhanced Grunt 8165 | -6/Proximity Caves | Spotted B-75 Beast 8187 | -6/Proximity Caves | Allies destroyed B-75 Beast 8279 | -6/Proximity Caves | Entered Factory 8279 | -6/Factory | Accompanied by 1 ally 8279 | -6/Factory | Evolved 2 slots: Propulsion x1, Weapon x1 8481 | -6/Factory | Repaired Broken Arm. Huge Wheel 8776 | -6/Factory | Discovered new exit (range 12) 8786 | -6/Factory | Identified exit to Extension 8787 | -6/Factory | Entered Extension 8833 | -6/Extension | Rescued a captive Derelict 8833 | -6/Extension | Rescued a captive Derelict 8856 | -6/Extension | Rescued a captive Derelict 8916 | -6/Extension | Rescued a captive Derelict 8925 | -6/Extension | Rescued a captive Derelict 8944 | -6/Extension | Rescued a captive Derelict 8945 | -6/Extension | Rescued a captive Derelict 9011 | -6/Extension | Rescued a captive Derelict 9011 | -6/Extension | Rescued a captive Derelict 9071 | -6/Extension | Rescued a captive Derelict 9101 | -6/Extension | Rescued a captive Derelict 9174 | -6/Extension | Spotted B-75 Beast 9194 | -6/Extension | Spotted B-75 Beast 9216 | -6/Extension | Destroyed B-75 Beast 9234 | -6/Extension | Destroyed B-75 Beast 9252 | -6/Extension | Lost 8 parts (1p1n3u3w) 9353 | -6/Extension | Rescued a captive Derelict 9353 | -6/Extension | Rescued a captive Derelict 9368 | -6/Extension | Rescued a captive Derelict 9379 | -6/Extension | Rescued A7 9517 | -6/Extension | Rescued a captive Derelict 9518 | -6/Extension | Rescued a captive Derelict 9526 | -6/Extension | Rescued a captive Derelict 9662 | -6/Extension | Discovered new exit (range 10) 9663 | -6/Extension | Discovered new exit (range 6) 9706 | -6/Extension | Disrupted transfer network 9724 | -6/Extension | Identified exit to Cetus 9734 | -6/Extension | Destroyed 8 combat bots 9750 | -6/Extension | Entered Cetus 9750 | -6/Cetus | Accompanied by 8 allies (A7) 9755 | -6/Cetus | Acquired a Cetus Manufacturing Module code from A7 9774 | -6/Cetus | Spotted Cetus Guard 9774 | -6/Cetus | Spotted Cetus Guard 9776 | -6/Cetus | Spotted Cetus Guard 9783 | -6/Cetus | Spotted Cetus Guard 9785 | -6/Cetus | Allies destroyed Cetus Guard 9787 | -6/Cetus | Destroyed Cetus Guard 9792 | -6/Cetus | Destroyed Cetus Guard 9793 | -6/Cetus | Allies destroyed Cetus Guard 9901 | -6/Cetus | Started Cetus Manufacturing Module 9912 | -6/Cetus | Escorted A7 to Cetus Mainframe 9926 | -6/Cetus | Manufactured an Enhanced Grunt 9926 | -6/Cetus | Discovered new exit (range 15) 9948 | -6/Cetus | Spotted Cetus Guard 9948 | -6/Cetus | Spotted Cetus Guard 9948 | -6/Cetus | Destroyed Cetus Guard 9951 | -6/Cetus | Manufactured an Enhanced Grunt 9953 | -6/Cetus | Destroyed Cetus Guard 9956 | -6/Cetus | Spotted Cetus Guard 9957 | -6/Cetus | Allies destroyed Cetus Guard 9965 | -6/Cetus | Discovered new exit (range 15) 9974 | -6/Cetus | Met Revision 17 9976 | -6/Cetus | Manufactured an Enhanced Grunt 10001 | -6/Cetus | Manufactured an Enhanced Grunt 10026 | -6/Cetus | Manufactured an Enhanced Grunt 10036 | -6/Cetus | Destroyed A7 10037 | -6/Cetus | Extracted ID and sensor layout for unrecognized location from A7's data core 10118 | -6/Cetus | Identified exit to Archives 10122 | -6/Cetus | Entered Archives 10122 | -6/Archives | Accompanied by 8 allies 10137 | -6/Archives | Met Zhirov 10143 | -6/Archives | Reinforcements dispatched to Archives 10150 | -6/Archives | Read partially decrypted archive contents 10150 | -6/Archives | Read partially decrypted archive contents 10152 | -6/Archives | Discovered new exit (range 15) 10187 | -6/Archives | Unable to access archive contents 10188 | -6/Archives | Reinforcements dispatched to Archives 10190 | -6/Archives | Zhirov warped through subspace 10208 | -6/Archives | Zhirov detonated Archives 10226 | -6/Archives | Identified exit to Hub_04(d) 10228 | -6/Archives | Entered Hub_04(d) 10239 | -6/Hub_04(d) | Lost 4 parts (1p1n2w) 10380 | -6/Hub_04(d) | Discovered new exit (range 3) 10404 | -6/Hub_04(d) | Identified exit to Factory 10422 | -6/Hub_04(d) | Build established: Scavenger-Tank 10499 | -6/Hub_04(d) | Core integrity fell below 50% 10539 | -6/Hub_04(d) | Network Hub disabled 10550 | -6/Hub_04(d) | Entered Factory 10550 | -5/Factory | Evolved 2 slots: Utility x2 10735 | -5/Factory | Identified exit to Upper Caves 10745 | -5/Factory | Discovered new exit (range 20) 10790 | -5/Factory | Build established: Scavenger-Mutant 11079 | -5/Factory | Repaired Broken Centrium Heavy Treads 11114 | -5/Factory | Fabricated Cmb. Gravmag System (x2) 11272 | -5/Factory | Build established: Scavenger-Tank 11300 | -5/Factory | Fabricated Cmb. Gravmag System (x2) 11549 | -5/Factory | Spotted B-75 Beast 11801 | -5/Factory | Found Powered Armor 11900 | -5/Factory | Repaired Quantum Reactor 11997 | -5/Factory | Entered Upper Caves 12176 | -5/Upper Caves | Learned location of Warlord (-5) 12198 | -5/Upper Caves | Learned 12 Factory zone layouts 12318 | -5/Upper Caves | Attracted the attention of an 0b10 checkpoint 12443 | -5/Upper Caves | Discovered new exit (range 5) 12446 | -5/Upper Caves | Identified exit to Upper Caves 12448 | -5/Upper Caves | Entered another Upper Caves area 12486 | -5/Upper Caves | Discovered new exit (range 3) 12487 | -5/Upper Caves | Identified exit to Factory 12732 | -5/Upper Caves | Discovered new exit (range 8) 12736 | -5/Upper Caves | Identified exit to Warlord 12739 | -5/Upper Caves | Entered Warlord 12771 | -5/Warlord | System corruption cleaned by Quarantine Array 12807 | -5/Warlord | Found Prototype Device 12807 | -5/Warlord | Identified Minesniffer Drone Bay 12918 | -5/Warlord | Build established: Hauler-Mutant 13043 | -5/Warlord | Learned Research security intel 13043 | -5/Warlord | Learned Research recycling unit intel 13044 | -5/Warlord | Learned Armory trap positions 13044 | -5/Warlord | Learned Quarantine trap positions 13044 | -5/Warlord | Learned Testing emergency access door positions 13144 | -5/Warlord | Met Warlord 13148 | -5/Warlord | Warlord's base attacked by MAIN.C 13218 | -5/Warlord | Found Prototype Hackware 13228 | -5/Warlord | Found Prototype Reactor 13338 | -5/Warlord | Discovered new exit (range 14) 13346 | -5/Warlord | Identified exit to Proximity Caves 13352 | -5/Warlord | Entered Proximity Caves 13360 | -4/Proximity Caves | Learned location of 1 exit from Research 13618 | -4/Proximity Caves | Discovered exit to Factory (range 5) 13625 | -4/Proximity Caves | Entered Factory 13625 | -4/Factory | Evolved 2 slots: Power x1, Propulsion x1 13626 | -4/Factory | Identified exit to Upper Caves 13693 | -4/Factory | Discovered new exit (range 9) 13698 | -4/Factory | Identified exit to Research 13948 | -4/Factory | Identified System Mapper 13985 | -4/Factory | Fabricated Cmb. Gravmag System (x2) 14030 | -4/Factory | Local fabrication network quarantined 14157 | -4/Factory | First assault squad dispatched 14179 | -4/Factory | Incoming assault squad redirected 14190 | -4/Factory | Incoming investigation squad redirected 14483 | -4/Factory | Repaired Quantum Reactor 14599 | -4/Factory | Spotted B-86 Titan 14633 | -4/Factory | Entered Upper Caves 14662 | -4/Upper Caves | Learned location of 1 exit from Proximity Caves 14991 | -4/Upper Caves | Encountered a Warlord checkpoint 14994 | -4/Upper Caves | Discovered new exit (range 15) 15034 | -4/Upper Caves | Build established: Scavenger-Mutant 15079 | -4/Upper Caves | Spotted B-86 Titan 15103 | -4/Upper Caves | Identified exit to Upper Caves 15103 | -4/Upper Caves | Entered another Upper Caves area 15185 | -4/Upper Caves | Attracted the attention of an 0b10 checkpoint 15629 | -4/Upper Caves | Discovered new exit (range 7) 15632 | -4/Upper Caves | Identified exit to Zhirov 15633 | -4/Upper Caves | Entered Zhirov 15635 | -4/Zhirov | Discovered new exit (range 3) 15676 | -4/Zhirov | Found Alien Artifact 15676 | -4/Zhirov | Identified Integrated Dissipator 15676 | -4/Zhirov | Installed Integrated Dissipator, increased core heat dissipation (+20) 15762 | -4/Zhirov | Identified exit to Proximity Caves 15764 | -4/Zhirov | Entered Proximity Caves 15894 | -3/Proximity Caves | Entered Research 15894 | -3/Research | Evolved 2 slots: Utility x2 15895 | -3/Research | Identified exit to Armory 15897 | -3/Research | Loaded intel: 4 recycling unit locations 16317 | -3/Research | Discovered new exit (range 15) 16326 | -3/Research | Destroyed 8 combat bots 16326 | -3/Research | Identified exit to Research 16441 | -3/Research | Garrison activated, responded to threat 16503 | -3/Research | Entered Armory 16504 | -3/Armory | Loaded intel: 56 trap records 16530 | -3/Armory | Lost 4 parts (4u) 17042 | -3/Armory | Fabricated Cmb. Gravmag System (x2) 17045 | -3/Armory | System corruption reached 10% 17050 | -3/Armory | First assault squad dispatched 17077 | -3/Armory | Core integrity fell below 50% 17086 | -3/Armory | Incoming assault squad redirected 17104 | -3/Armory | Discovered exit to Research (range 5) 17109 | -3/Armory | Entered Research 17109 | -2/Research | Warlord forces began assault on 0b10 17109 | -2/Research | Evolved 2 slots: Utility x2 17110 | -2/Research | Identified exit to Testing 17139 | -2/Research | Lost 15 parts (1p6n4u4w) 17219 | -2/Research | Research machine network offline 17286 | -2/Research | Met up with Warlord 17348 | -2/Research | Borebot progress halted 17392 | -2/Research | Spotted Striker 17395 | -2/Research | Spotted Striker 17521 | -2/Research | Found Imp. Powered Armor 17545 | -2/Research | Spotted Striker 17548 | -2/Research | Destroyed Striker 17555 | -2/Research | Spotted Executioner 17560 | -2/Research | P-80 Master assimilated allied O7-WKT(d) 17561 | -2/Research | Destroyed Executioner 17562 | -2/Research | Spotted Striker 17651 | -2/Research | Spotted Executioner 17657 | -2/Research | Spotted Executioner 17666 | -2/Research | Destroyed Executioner 17691 | -2/Research | Found Prototype Processor 17691 | -2/Research | Identified Exp. Core Analyzer 17705 | -2/Research | Discovered exit to Testing (range 16) 17739 | -2/Research | Entered Testing 17761 | -2/Testing | Garrison activated, responded to threat 17832 | -2/Testing | Identified Vortex Chain Reactor 17833 | -2/Testing | Found Prototype Energy Cannon 17858 | -2/Testing | Identified Cld. Nova Cannon 17877 | -2/Testing | Incoming assault squad redirected 18171 | -2/Testing | Build established: Scavenger-Tank 18249 | -2/Testing | Discovered new exit (range 11) 18325 | -2/Testing | Identified exit to Access 18326 | -2/Testing | Entered Access 18326 | -1/Access | Evolved 2 slots: Utility x1, Weapon x1 18478 | -1/Access | Destroyed 7 combat bots 18563 | -1/Access | Lost 8 parts (1n4u3w) 18565 | -1/Access | Destroyed 8 combat bots 18576 | -1/Access | First assault squad dispatched 18659 | -1/Access | Lost 6 parts (1p2n1u2w) 18724 | -1/Access | Lost 10 parts (2p2n4u2w) 18782 | -1/Access | Core integrity fell below 50% 18812 | -1/Access | Lost 7 parts (5n2u) 18815 | -1/Access | Core integrity fell below 20% 18815 | -1/Access | System corruption reached 10% 18834 | -1/Access | Destroyed by P-80 Master with Gamma Rifle Last Messages --------------- 18796_ System corrupted: Matter fused (-8). 18800_ Slammed into P-80 Master. 18800_ Triggered Stasis Trap. 18800_ A bubble of rippling energy engulfs the area. 18800_ Field strength at 94. 18801_ Field strength at 81. 18802_ Field strength at 75. 18803_ Field strength at 56. 18804_ Field strength at 37. 18805_ Field strength at 17. 18806_ Stasis field depleted. 18810_ S-43 Plague suffers critical hit. 18812_ Imp. Targeting Computer destroyed. 18812_ P-80 Master resets S-43 Plague, system corruption cleaned. 18818_ System corrupted: Component data lost. 18825_ Acquired Prototype Device. 18825_ Identified Prc. Energy Filter. 18826_ ALERT: Rogue bot located, Programmers report to Access Zone 2W. 18827_ Acquired Prc. Energy Filter. 18834_ Slug penetrates Wall. Map ----- +----------------------------------------------------+ | ?????????????????????????# #?? #?????????????? | | ?????????????????????????# #??? #?????????????? | | ?????????????????????????# #??? #?????????????? | | ?????????????????????????# #???? #?????????????? | | ?????????????????????????# #????##?????????????? | | ?????????????????????????# #???????????????????? | | ?????????????????????????# #???????????????????? | | ?????????????????????????# #???????????????????? | | ?????????????????######### #???????????????????? | | ????????????# + +???????????????????? | | ????????????# # #???????????????????? | | ????????????# " # #???????????????????? | | ?????????????""" ?# #???????????????????? | | ??????????????""" ?# #???????????????????? | | ???????????????" ??# #???????????????????? | | ?????????????? ??# #???????????????????? | | ????????????? ???# #???????????????????? | | ????????????? ???# #???????????????????? | | ????????????? ????# #######?????????????? | | ?????????????? ????# p ??????? | | ?????????????? ?????# #######?????????????? | | ????????????????####?????# #???????????????????? | | ??????????????????????#####p#####????????????????? | | ??????????????????????# #????????????????? | | ??????????????????????# #????????????????? | | ??????????????????????# @ +????????????????? | | ??????????????????????# | #????????????????? | | ??????????????????????# | ] #????????????????? | | ??????????????????????#|| #????????????????? | | ??????????????????????# ] #????????????????? | | ??????????????????????# #????????????????? | | ??????????????????????###########????????????????? | | ?????????????????????????????????????????????????? | | ?????????????????????????????????????????????????? | | ?????????????????????????????????????????????????? | | | | | | | | | | | | | | | | | | | | | | | | | | | | | | | +----------------------------------------------------+ Best States ------------- Heat Dissipation 110 Energy Generation 55 Energy Capacity 1410 Matter Stores 300 Matter Capacity 300 Sight Range 16 Robot Scan Range 20 Terrain Scan Range 20 Terrain Scan Density 210 Jamming Range 16 Armor Coverage 1300 Resistance: TH 15 Core Shielding 20 Propulsion Shielding 90 Weapon Cycling 20 Phase Shifting 15 Evasion (%) 64 Targeting Accuracy 22 Core Analysis 15 Recoil Reduction 4 Energy Filtering 50 Offensive Hacking 20 Defensive Hacking 14 Item Schematics ----------------- Cmb. Airjet | -8/Materials | Scanalyzed Kinecellerator | -8/Storage | Hacked Combat Drone Bay | -7/Data Miner | Free Lgt. Regenerative Plating | -7/Data Miner | Free Cmb. Gravmag System | -7/Data Miner | Free Exp. Terrain Scanner | -7/Data Miner | Free Exp. Terrain Scan Processor | -7/Data Miner | Free Exp. Targeting Computer | -7/Data Miner | Free Imp. KE Penetrator | -5/Factory | Scanalyzed Lrn. Sensor Array | -5/Factory | Scanalyzed Hvy. Disruptor Cannon | -5/Factory | Hacked Centrium Medium Armor Plating | -4/Factory | Scanalyzed Robot Schematics ------------------ S-27 Virus | -7/Data Miner | Free G-50 Soldier | -7/Data Miner | Free L-41 Fighter | -7/Data Miner | Free I-36 Angel | -7/Data Miner | Free Fabricated ------------ Cmb. Gravmag System | x2 | -5/Factory Cmb. Gravmag System | x2 | -5/Factory Cmb. Gravmag System | x2 | -4/Factory Cmb. Gravmag System | x2 | -3/Armory Alien Tech Used ----------------- Integrated Dissipator Achievements -------------- None Challenges ------------ None Game ------ Seed CouplerAlloyInterrupter Manual? 0 Play Time 04:22:35 Cumulative 404.3 hours Start 2020.11.29 @ 00:04:44 End 2020.11.29 @ 17:31:12 Sessions 13 Manual Loads 0 Difficulty Rogue Special Mode None Game No. 296 Rogue 296 Adventurer 0 Explorer 0 Win Type - Total 12 Types 11/0/0/1/0/0/0/0/0 Lore% 79 Gallery% 78 Achievement% 64 Wizard Run 0 Options --------- ASCII 0 Keyboard 0 Movement Vi Keybinds 0 Fullscreen 0 Font 16/SmallcapsGlow Map View 76x50 Tactical HUD 1 Map Filters NONE Filters NONE Steam 1 RUN: 05f16f4c-a8c9-4877-beec-95a4a47d79c7